Cogmind - Beta 17 @@@ ROGUE MODE // 2026.07.06 @ 17:30:28 Player: 3.14 Result: Destroyed by H-66 Slayer with Gauss Rifle Performance ------------- Evolutions (4) 2000 Regions Visited (7) 1400 Robots Destroyed (35) 175 Value Destroyed (1185) 1185 Prototype IDs (7) 140 Alien Tech Used (0) 0 Bonus (1352) 1352 TOTAL SCORE: 6252 Bonus ------- Follower Combat Kills 654 Registered with UFD 300 Met Optimus in HQ 500 Friendly Fire -102 Cogmind --------- Core Integrity 0/850 Matter 204/300 Energy 100/100 System Corruption 1% Temperature Cool (0) Movement Core (50) Location -6/Lower Caves Parts ------- > --- POWER (1) -------- (None) > --- PROPULSION (4) --- (None) > --- UTILITY (8) ------ (None) > --- WEAPON (2) ------- (None) > --- INVENTORY (5) ---- Micro Nuclear Core Titanium Leg Long-range Missile Launcher LU-1G1's Laser Shovel Makeshift Sword Peak State ------------ > --- POWER ------------ Improved Deuterium Engine > --- PROPULSION ------- Carbon-fiber Leg Titanium Leg VSS Leg Flexi-carbon Leg > --- UTILITY ---------- Large Storage Unit IFF Parser Advanced Melee Analysis Suite Armor Integrity Analyzer Enhanced Scrap Shield Makeshift Hacking Suite Mapping Drone Bay > --- WEAPON ----------- LU-1G1's Laser Shovel DM-GVY's Chainsaw > --- INVENTORY -------- Micro Nuclear Core Carbon-fiber Leg Titanium Leg Titanium Leg Titanium Leg Microactuators Makeshift Transmission Jammer Layered Medium Armor Plating Missile Launcher Long-range Missile Launcher Ripper Makeshift Sword DRS Beacon Deploy-a-Sentry [Rating: 75] Favorites ----------- Power Makeshift Power Source Engine Makeshift Power Source Power Core Light Nuclear Core Propulsion Light Treads Treads Light Treads Leg Flexi-carbon Leg Utility High-capacity Storage Unit Device V3-11A's Pendant Storage High-capacity Storage Unit Processor Armor Integrity Analyzer Hackware Makeshift Hacking Suite Protection Makeshift Light Armor Plating Weapon Improved Light Cannon Ballistic Gun Assault Rifle Ballistic Cannon Improved Light Cannon Launcher Missile Launcher Special Weapon LU-1G1's Laser Shovel Slashing Weapon Makeshift Sword Build | -11 -10 -10 -10 -9 -9 -6 -6 ------- Run | Yrd Mat Min Sub Rec Scr Fac Low Slots Evolved 8 | . . . . . . 8 . Power . | . . . . . . . . Propulsion 2 | . . . . . . 2 . Utility 6 | . . . . . . 6 . Weapon . | . . . . . . . . Parts Attached 58 | 6 2 . 6 2 9 30 3 Power 7 | 1 . . 1 . . 5 . Engine 6 | 1 . . 1 . . 4 . Core 1 | . . . . . . 1 . Reactor . | . . . . . . . . Propulsion 19 | 2 . . . 2 3 12 . Treads 7 | 2 . . . 2 3 . . Leg 12 | . . . . . . 12 . Wheel . | . . . . . . . . Hover . | . . . . . . . . Flight . | . . . . . . . . Utility 20 | 1 1 . 1 . 3 12 2 Device 5 | . . . 1 . . 3 1 Storage 3 | 1 1 . . . . 1 . Processor 4 | . . . . . . 4 . Hackware 2 | . . . . . . 2 . Protection 6 | . . . . . 3 2 1 Artifact . | . . . . . . . . Weapon 12 | 2 1 . 4 . 3 1 1 Energy Gun . | . . . . . . . . Energy Cannon . | . . . . . . . . Ballistic Gun 2 | 2 . . . . . . . Ballistic Cannon 4 | . 1 . 3 . . . . Launcher 1 | . . . . . . . 1 Special Weapon 1 | . . . . . 1 . . Impact Weapon . | . . . . . . . . Slashing Weapon 4 | . . . 1 . 2 1 . Piercing Weapon . | . . . . . . . . Special Melee Weapon . | . . . . . . . . Unidentified Prototypes 3 | . . . 1 . 1 . 1 Parts Lost 7 | . . . . . . 6 1 Power 2 | . . . . . . 2 . Propulsion 2 | . . . . . . 2 . Utility 3 | . . . . . . 2 1 Weapon . | . . . . . . . . Highest Loss Streak 2 | . . . . . . 2 1 To Critical Strikes 1 | . . . . . . 1 . Average Backups 16 | 2 10 17 18 18 17 12 12 Power 1 | . 1 2 1 1 . . 1 Propulsion 5 | 1 3 4 5 6 6 3 3 Utility 3 | . . 1 2 3 4 2 2 Weapon 6 | . 5 10 9 7 5 3 3 Tool/Special . | . . . . . . . . Unused Backups 29 | . 3 . 5 1 11 1 8 Power 1 | . . . 1 . . . . Propulsion 10 | . 2 . . . 4 . 4 Utility 4 | . . . . . 2 . 2 Weapon 12 | . 1 . 4 1 4 1 1 Tool/Special 2 | . . . . . 1 . 1 Average Slot Usage (%) 96 | . 96 100 100 100 97 88 81 Engine 12 | . 14 14 14 14 13 4 5 Treads 23 | . 28 28 28 28 27 . . Leg 3 | . . . . . . 25 24 Device 7 | . . . 13 14 2 5 11 Storage 13 | . 24 28 14 14 13 6 5 Processor 1 | . . . . . . 10 12 Hackware 1 | . . . . . . 12 5 Protection 5 | . . . . . 11 13 5 Ballistic Gun 2 | . 15 14 5 . . . . Ballistic Cannon 11 | . 12 14 12 14 13 . . Slashing Weapon 10 | . . . 10 14 14 6 5 Peak Build Rating 75 | 6 10 11 20 20 30 68 75 Average Rating 25 | 5 9 10 16 19 21 62 65 On Entrance 20 | . 6 10 11 20 20 30 64 Avg Prop Armor Cover (%) . | . . . . . . . . Naked Turns 32 | . . . . . . . 32 Heaviest Build 59 | 13 56 56 56 51 59 57 55 Greatest Support 80 | 40 40 40 40 40 46 80 64 Greatest Overweight (x) 13 | . 1 1 1 1 13 1 . Average Overweight (x) . | . . 1 1 1 . . . Largest Inventory Capacity 20 | 8 20 20 20 20 20 20 15 Average Capacity 19 | 7 17 20 20 20 19 15 14 Most Carried 20 | 4 16 18 20 20 20 20 15 Average Carried 17 | 2 10 17 19 19 18 14 14 Final Capacity 20 | 8 20 20 20 20 20 15 5 Final Carried 20 | 4 16 18 20 19 20 15 5 Class Distribution -------------------- 90% | Mutant 8% | Hacker-Mutant Dominant Class ---------------- Mutant | -10/Materials Mutant | -10/Mines Mutant | -10/Subcaves Mutant | -9/Recycling Mutant | -9/Scraptown Hacker-Mutant | -6/Factory Mutant | -6/Lower Caves Resources | -11 -10 -10 -10 -9 -9 -6 -6 ----------- Run | Yrd Mat Min Sub Rec Scr Fac Low Matter Collected 1106 | 263 73 12 156 32 160 390 20 Remotely . | . . . . . . . . Salvage Created 1872 | 77 171 63 22 204 61 1243 31 Parts 73 | 3 8 8 3 8 3 36 4 Haulers Intercepted . | . . . . . . . . Recyclers Shooed 5 | . . . . 1 . 4 . Parts Field Recycled . | . . . . . . . . Retrieved Matter . | . . . . . . . . Parts Self-Destructed 23 | . . . 15 . 2 . 6 Prevented 1 | . . . . . . . 1 Parts Restored . | . . . . . . . . Kills | -11 -10 -10 -10 -9 -9 -6 -6 ------- Run | Yrd Mat Min Sub Rec Scr Fac Low Combat Hostiles Destroyed 27 | . 2 4 1 . 1 16 3 Melee 16 | . . . . . . 16 . Guns 1 | . . 1 . . . . . Cannons 7 | . 2 3 1 . 1 . . AOE 3 | . . . . . . . 3 Classes Destroyed 7 | 1 1 1 1 . 1 2 . Recycler 7 | 1 1 . . 3 . 2 . Turret 1 | . . . 1 . . . . Swarmer 8 | . . 3 1 . . 1 3 Grunt 13 | . 2 1 . . . 10 . Sentry 4 | . . . . . . 4 . Programmer 1 | . . . . . . 1 . Scrapper 1 | . . . . . 1 . . Best Kill Streak 4 | 1 2 3 2 3 1 4 3 Combat Bots Only 3 | . 2 3 1 . 1 3 3 Max Kills in Single Turn 2 | 1 1 1 1 1 1 1 2 Gunslinging . | . . . . . . . . Exploded 2 | . . . . . . . 2 Melee 1 | . . . . . . 1 . Uniques/NPCs Destroyed . | . . . . . . . . Combat | -11 -10 -10 -10 -9 -9 -6 -6 -------- Run | Yrd Mat Min Sub Rec Scr Fac Low Hostile Shots Fired 329 | . 8 6 28 . 24 204 59 Missed 88 | . . 2 9 . 8 55 14 Hits 241 | . 8 4 19 . 16 149 45 Projectile 241 | . 8 4 19 . 16 149 45 Critical Strikes 7 | . . . . . 1 6 . Damage Taken 3250 | . 106 38 239 . 191 1832 844 Core 932 | . 29 . 22 . 28 253 600 Absorbed by Shields 146 | . . . . . . 146 . Regen/Repaired (Parts) 391 | . . . . . . 391 . Core Remaining (%) 84 | 100 . . . . 68 . . Volleys Fired 36 | 2 8 6 7 3 5 . 5 Largest 2 | 2 2 2 2 1 1 . 1 Hottest 53 | 40 53 53 53 33 33 . 36 Shots Fired 58 | 4 16 12 13 3 5 . 5 Gun 24 | 4 8 6 6 . . . . Cannon 29 | . 8 6 7 3 5 . . Launcher 5 | . . . . . . . 5 Special . | . . . . . . . . Kinetic 53 | 4 16 12 13 3 5 . . Thermal . | . . . . . . . . Explosive 5 | . . . . . . . 5 Electromagnetic . | . . . . . . . . Robot Hit Streak 6 | 1 4 6 5 2 3 . 2 Robot Miss Streak 3 | 2 2 1 2 3 1 . . Penetration Max . | . . . . . . . . Secondary Targets . | . . . . . . . . Shots Hit Robots 103 | 2 10 9 7 5 3 66 1 Core Hits 49 | 2 5 5 3 2 1 26 5 Critical Kills . | . . . . . . . . Critical Parts Destroyed . | . . . . . . . . Critical Strikes 29 | . . 1 1 . . 27 . Blast 2 | . . 1 1 . . . . Sever 27 | . . . . . . 27 . Melee Attacks 107 | . . . 20 3 6 78 . Impact . | . . . . . . . . Slashing 107 | . . . 20 3 6 78 . Piercing . | . . . . . . . . Sneak Attacks 9 | . . . . 3 . 6 . Combat Hostiles 1 | . . . . . . 1 . Follow-up Attacks . | . . . . . . . . Damage Inflicted 4504 | 26 181 157 191 286 63 3389 211 Guns 175 | 21 76 44 34 . . . . Cannons 494 | . 100 113 157 61 63 . . Explosions 211 | . . . . . . . 211 Melee 3605 | . . . . 216 . 3389 . Ramming 19 | 5 5 . . 9 . . . Kinetic 669 | 21 176 157 191 61 63 . . Thermal . | . . . . . . . . Explosive 211 | . . . . . . . 211 Electromagnetic . | . . . . . . . . Impact . | . . . . . . . . Slashing 3605 | . . . . 216 . 3389 . Piercing . | . . . . . . . . Highest Corruption 1 | . . . . . . 1 1 Average Corruption 1 | . . . . . . 1 1 Corruption Purged . | . . . . . . . . Corruption Blocked . | . . . . . . . . Effects 6 | . . . . . . . 6 Message Errors 3 | . . . . . . . 3 Matter Fused 1 | . . . . . . . 1 Data Loss (minor) 1 | . . . . . . . 1 Alerts 1 | . . . . . . . 1 Overload Shots . | . . . . . . . . Overflow Damage 341 | . . 18 . 126 . 197 . Projectiles 18 | . . 18 . . . . . Explosions . | . . . . . . . . Melee 323 | . . . . 126 . 197 . Knockbacks 1 | . . . . . 1 . . Impact . | . . . . . . . . Kinetic 1 | . . . . . 1 . . Secondary . | . . . . . . . . Self-Inflicted Damage 75 | . . . . . . . 75 Shots 2 | . . . . . . . 2 Rammed 5 | 2 1 . . 2 . . . Targets Rammed 5 | 2 1 . . 2 . . . Kicked . | . . . . . . . . Crushed . | . . . . . . . . Highest Temperature 78 | . 30 . . 6 78 42 . Average Temperature 22 | . 17 . . 3 37 15 . Received Heat Transfer 980 | . 63 6 48 . 60 803 . Siege Activations . | . . . . . . . . Martial Activations . | . . . . . . . . Shielding Activations . | . . . . . . . . Robots Disrupted . | . . . . . . . . Combat Hostiles . | . . . . . . . . Robots Corrupted . | . . . . . . . . Combat Hostiles . | . . . . . . . . Parts Fried . | . . . . . . . . Impact Corruptions . | . . . . . . . . Robots Melted . | . . . . . . . . Combat Hostiles . | . . . . . . . . Parts Melted . | . . . . . . . . Heat Transferred . | . . . . . . . . Parts Sabotaged . | . . . . . . . . Parts Stolen . | . . . . . . . . Parts Stripped . | . . . . . . . . Power Chain Reactions . | . . . . . . . . Alert | -11 -10 -10 -10 -9 -9 -6 -6 ------- Run | Yrd Mat Min Sub Rec Scr Fac Low Maximum Alert Level . | . . . . . . . . Low Security (%) 100 | 100 100 100 . 100 . 100 . Level 1 . | . . . . . . . . Level 2 . | . . . . . . . . Level 3 . | . . . . . . . . Level 4 . | . . . . . . . . Level 5 . | . . . . . . . . High Security . | . . . . . . . . Max Security . | . . . . . . . . Peak Influence 128 | 5 50 60 . 44 . 128 . Initial 11 | . . 11 . . . . . Average 25 | . 6 12 . 9 . 51 . Influence Increases 1247 | 5 55 90 253 212 . 562 70 Destroy 0b10 Robot/C 720 | . 40 80 180 40 . 320 60 Destroy 0b10 Robot/NC 35 | 5 5 . . 15 . 10 . Destroy Leader 120 | . 10 10 10 . . 80 10 Allied During Kill 59 | . . . 33 26 . . . Successful Hack 29 | . . . . 11 . 18 . Select Force Hacks 120 | . . . . 120 . . . Destroy Structure 14 | . . . . . . 14 . Lose Combat Pursuer 150 | . . . 30 . . 120 . Influence Decreases 1217 | 5 25 120 253 212 . 440 162 Entered New Map 65 | . . 19 . . . . 46 Time Decay 1042 | 5 25 101 203 212 . 380 116 Lost Part 50 | . . . . . . 50 . Lost Ally 60 | . . . 50 . . 10 . Squads Dispatched 6 | . . . . . . 6 . Investigation 4 | . . . . . . 4 . Extermination 1 | . . . . . . 1 . Reinforcement 1 | . . . . . . 1 . Assault . | . . . . . . . . Garrison . | . . . . . . . . Intercept . | . . . . . . . . Searches Triggered . | . . . . . . . . Construction Impeded . | . . . . . . . . Haulers Reinforced . | . . . . . . . . Active Scanning Responses . | . . . . . . . . Cargo Convoy Interrupts . | . . . . . . . . Stealth | -11 -10 -10 -10 -9 -9 -6 -6 --------- Run | Yrd Mat Min Sub Rec Scr Fac Low Distress Signals . | . . . . . . . . Communications Jammed . | . . . . . . . . Distress Signals . | . . . . . . . . Times Spotted 68 | . 3 4 21 . 10 25 5 Peak Tracking Total 4 | . 2 3 3 . 3 4 3 Tactical Retreats 6 | . . . 1 . . 5 . Traps | -11 -10 -10 -10 -9 -9 -6 -6 ------- Run | Yrd Mat Min Sub Rec Scr Fac Low Traps Triggered 1 | . . . 1 . . . . Indirectly . | . . . . . . . . Trap Hack Attempts . | . . . . . . . . Triggered . | . . . . . . . . Disarmed . | . . . . . . . . Reprogrammed . | . . . . . . . . Reused . | . . . . . . . . Traps Extracted . | . . . . . . . . Installed . | . . . . . . . . Triggered . | . . . . . . . . Machines | -11 -10 -10 -10 -9 -9 -6 -6 ---------- Run | Yrd Mat Min Sub Rec Scr Fac Low Machines Disabled 9 | . . . . . 9 . . Max in Single Turn 1 | . . . . . 1 . . Machines Repaired . | . . . . . . . . Machines Dismantled . | . . . . . . . . Machines Sabotaged . | . . . . . . . . Overloaded Fab Kills . | . . . . . . . . Hacking | -11 -10 -10 -10 -9 -9 -6 -6 --------- Run | Yrd Mat Min Sub Rec Scr Fac Low Machines Accessed 22 | . . . 1 7 3 9 2 Terminals 7 | . . . . 3 . 4 . Fabricators . | . . . . . . . . Repair Stations 2 | . . . . . . 2 . Recycling Units 7 | . . . . 4 . 3 . Scanalyzers . | . . . . . . . . Garrison Access . | . . . . . . . . Total Hacks 70 | . . . 4 10 28 23 5 Successful 61 | . . . 4 7 28 17 5 Failed 9 | . . . . 3 . 6 . Catastrophic 1 | . . . . . . 1 . Database Lockouts . | . . . . . . . . Manual 24 | . . . . 7 . 17 . Terminals 22 | . . . . 6 . 16 . Fabricators . | . . . . . . . . Repair Stations 4 | . . . . . . 4 . Recycling Units 7 | . . . . 4 . 3 . Scanalyzers . | . . . . . . . . Garrison Access . | . . . . . . . . Terminal Hacks 43 | . . . 4 2 28 4 5 Record 29 | . . . 4 . 21 . 4 Part Schematic 2 | . . . . 1 . 1 . Robot Analysis 7 | . . . . . 7 . . Prototype ID Bank 1 | . . . . 1 . . . Open Door 1 | . . . . . . . 1 Terminal Index 1 | . . . . . . 1 . Alert Level 1 | . . . . . . 1 . Recall Investigation 1 | . . . . . . 1 . Fabricator Hacks . | . . . . . . . . Repair Station Hacks 2 | . . . . . . 2 . Scan Component 1 | . . . . . . 1 . Repair 1 | . . . . . . 1 . Recycling Unit Hacks . | . . . . . . . . Scanalyzer . | . . . . . . . . Garrison Access Hacks . | . . . . . . . . Unauthorized Hacks 16 | . . . . 5 . 11 . Terminals 8 | . . . . 1 . 7 . Botnet 4 | . . . . 1 . 3 . Operators 1 | . . . . . . 1 . Skim 3 | . . . . . . 3 . Fabricators . | . . . . . . . . Repair Stations 1 | . . . . . . 1 . Patch 1 | . . . . . . 1 . Recycling Units 7 | . . . . 4 . 3 . Tunnel 4 | . . . . 4 . . . Fedlink 3 | . . . . . . 3 . Scanalyzers . | . . . . . . . . Garrison Access . | . . . . . . . . Data Cores Recovered . | . . . . . . . . Used . | . . . . . . . . Hacking Detections 6 | . . . . 2 . 4 . Full Trace Events . | . . . . . . . . Feedback Events . | . . . . . . . . Feedback Blocked . | . . . . . . . . Robot Schematics Acquired . | . . . . . . . . Robots Built . | . . . . . . . . Authchips . | . . . . . . . . Time . | . . . . . . . . Total Robot Build Rating . | . . . . . . . . Part Schematics Acquired 2 | . . . . 1 . 1 . Parts Built . | . . . . . . . . Authchips . | . . . . . . . . Time . | . . . . . . . . Total Part Build Rating . | . . . . . . . . Part Studies Acquired . | . . . . . . . . Parts Repaired 1 | . . . . . . 1 . Time 50 | . . . . . . 50 . Parts Recycled . | . . . . . . . . Recycled Matter . | . . . . . . . . Retrieved Matter . | . . . . . . . . Retrieved Components . | . . . . . . . . Parts Scanalyzed . | . . . . . . . . Part Schematics Acquired . | . . . . . . . . Parts Damaged . | . . . . . . . . Bothacking | -11 -10 -10 -10 -9 -9 -6 -6 ------------ Run | Yrd Mat Min Sub Rec Scr Fac Low Used RIF Installer . | . . . . . . . . Robots Hacked . | . . . . . . . . Non-combat . | . . . . . . . . Combat . | . . . . . . . . Robot Hacks Applied . | . . . . . . . . Relay Couplers Released . | . . . . . . . . Fabnet Peak Effective % . | . . . . . . . . Robots Rewired . | . . . . . . . . Allies Hacked . | . . . . . . . . Hacks Repelled . | . . . . . . . . Allies | -11 -10 -10 -10 -9 -9 -6 -6 -------- Run | Yrd Mat Min Sub Rec Scr Fac Low Total Allies 15 | . . . 15 . . . . Largest Group 9 | . . . 9 9 9 3 . Highest-Rated Group 169 | . . . 169 169 169 55 . Highest-Rated Ally 19 | . . . 19 19 19 19 . Initial UFD Resources 39 | . . . . . . 23 39 Total Orders 1 | . . . . . . . 1 RETURN 1 | . . . . . . . 1 Ally Attacks 128 | . . . 40 3 81 4 . Total Damage 1774 | . . . 615 68 1072 19 . Kills 26 | . . . 9 2 15 . . Allies Corrupted . | . . . . . . . . Allies Melted 2 | . . . . . 2 . . Intel | -11 -10 -10 -10 -9 -9 -6 -6 ------- Run | Yrd Mat Min Sub Rec Scr Fac Low Active Infowar (turns) 1540 | . . . . . . 966 574 IFF 1540 | . . . . . . 966 574 Robot Analysis Total 7 | . . . . . 7 . . Derelict Logs Recovered 6 | . . 1 2 . 3 . . Drone Launches 1 | . . . . . . . 1 Drone Recoveries 1 | . . . . . . . 1 Exploration | -11 -10 -10 -10 -9 -9 -6 -6 ------------- Run | Yrd Mat Min Sub Rec Scr Fac Low Turns Passed 12506 | 77 356 486 4029 990 4713 1194 661 Spaces Moved 5138 | 38 142 195 1541 397 1878 569 378 Core 154 | 4 . . . . 142 . 8 Treads 4050 | 34 142 195 1541 397 1736 5 . Legs 934 | . . . . . . 564 370 Wheels . | . . . . . . . . Hover . | . . . . . . . . Flight . | . . . . . . . . Fastest Speed 50 | 50 160 240 240 240 50 105 50 Average Speed 210 | 148 219 240 240 240 225 118 113 Slowest Speed 700 | 160 240 240 240 240 700 240 115 Overloaded Moves . | . . . . . . . . Propulsion Burnouts . | . . . . . . . . Robots Hopped . | . . . . . . . . Potential Cave-ins 1 | . . . . . . . 1 Cave-ins Triggered . | . . . . . . . . Exploration Rate (%) 47 | 4 15 47 93 65 86 11 55 Regions Visited 7 Branch Regions 5 Pre-discovered Areas 12 | . . . 1 4 6 1 . Known Exits Taken 2 | . . . . . 1 1 . Unknown Exits Taken 5 | 1 1 1 1 1 . . . Scrap Searched 14 | . . . 9 . 3 . 2 Spaces Dug 36 | . . . . . 3 15 18 Terrain Destroyed 59 | . . . . . 1 15 43 Melee 5 | . . . . . . 5 . Projectile . | . . . . . . . . AOE 37 | . . . . . . . 37 Terrain Rammed . | . . . . . . . . Walls Destroyed . | . . . . . . . . Machines Disabled . | . . . . . . . . Actions | -11 -10 -10 -10 -9 -9 -6 -6 --------- Run | Yrd Mat Min Sub Rec Scr Fac Low Total 6606 | 51 170 202 1842 428 2362 944 607 Wait 1090 | . . . 248 17 397 220 208 Move 5131 | 37 141 194 1540 396 1877 568 378 Hop . | . . . . . . . . Pick Up 88 | 4 15 2 9 1 38 15 4 Fast Attach 21 | 6 1 . 1 . 5 7 1 Attach 26 | . . . 2 . 5 17 2 Detach 8 | . . . . . . 6 2 Swap 30 | . 1 . 5 2 4 16 2 Drop 65 | . 3 . 10 4 25 18 5 Fire 36 | 2 8 6 7 3 5 . 5 Melee 106 | . . . 20 3 6 77 . Ram . | . . . . . . . . Kick . | . . . . . . . . Crush 5 | 2 1 . . 2 . . . Escape Stasis . | . . . . . . . . Rewire . | . . . . . . . . Trap . | . . . . . . . . Miscellaneous . | . . . . . . . . Route ------- -11/Scrapyard -10/Materials -10/Mines (discovered 3 exits: [*Mat] / Exi / *Sub) -10/Subcaves (discovered 3 exits: [*Mat x2] / *Rec) -9/Recycling (discovered 2 exits: [*Fac] / *Scr) -9/Scraptown (discovered 2 exits: *Fac x2) -6/Factory (discovered 7 exits: Fac x4 / *Low / Ext x2) -6/Lower Caves (discovered 1 exit: [*Low]) History --------- Turn | Location | Event 10 | -11/Scrapyard | Discovered new exit (range 15) 78 | -11/Scrapyard | Entered Materials 124 | -10/Materials | Discovered new exit (range 16) 300 | -10/Materials | Build established: Mutant 434 | -10/Materials | Entered Mines 472 | -10/Mines | Met a Derelict bent on vengeance 478 | -10/Mines | A weapon hastily lodged in a ceiling crevice suddenly fell to the ground 636 | -10/Mines | Identified exit to Exiles 704 | -10/Mines | Discovered new exit (range 6) 891 | -10/Mines | Discovered new exit (range 13) 920 | -10/Mines | Entered Subcaves 921 | -10/Subcaves | A swath of the cavern ceiling suddenly collapsed 1088 | -10/Subcaves | Visited triangular shrine 1103 | -10/Subcaves | Found Prototype Device 1103 | -10/Subcaves | Identified V3-11A's Pendant 1108 | -10/Subcaves | Befriended Subdweller 1383 | -10/Subcaves | Befriended Subdweller 1438 | -10/Subcaves | Befriended Subdweller 1574 | -10/Subcaves | Shifting Twisted Machinery released Flamer 1645 | -10/Subcaves | Shifting Twisted Machinery released Battle Cannon 1798 | -10/Subcaves | Disturbed a concealed Subdweller 1798 | -10/Subcaves | Befriended Subdweller 1798 | -10/Subcaves | Disturbed a concealed Subdweller 1803 | -10/Subcaves | Befriended Subdweller 2228 | -10/Subcaves | Befriended Subdweller 2228 | -10/Subcaves | Discovered new exit (range 15) 2326 | -10/Subcaves | Disturbed a concealed Subdweller 2328 | -10/Subcaves | Befriended Subdweller 2438 | -10/Subcaves | Befriended Subdweller 2443 | -10/Subcaves | Befriended Subdweller 2443 | -10/Subcaves | Befriended Subdweller 2495 | -10/Subcaves | Shifting Twisted Machinery released Battle Rifle 2538 | -10/Subcaves | Befriended Subdweller 2558 | -10/Subcaves | Shifting Twisted Machinery released Sub. Laser 2673 | -10/Subcaves | Befriended Subdweller 2706 | -10/Subcaves | Learned Materials stockpile data 2892 | -10/Subcaves | Discovered new exit (range 15) 2898 | -10/Subcaves | Befriended Subdweller 2898 | -10/Subcaves | Befriended Subdweller 2949 | -10/Subcaves | Shifting Twisted Machinery released Barrage Gun 3032 | -10/Subcaves | Shifting Twisted Machinery released Mak. Power Source 3193 | -10/Subcaves | Befriended Subdweller 4444 | -10/Subcaves | Visited Clippyterm 4451 | -10/Subcaves | Learned Factory fabricator intel 4451 | -10/Subcaves | Learned Factory stockpile data 4561 | -10/Subcaves | Discovered new exit (range 5) 4949 | -10/Subcaves | Entered Recycling 4949 | -9/Recycling | Accompanied by 9 allies 5508 | -9/Recycling | Scanned before Scraplab entrance 5525 | -9/Recycling | Discovered new exit (range 15) 5883 | -9/Recycling | Entered Scraplab 5902 | -9/Recycling | Discovered new exit (range 3) 5939 | -9/Recycling | Entered Scraptown 5939 | -9/Scraptown | Accompanied by 9 allies 6437 | -9/Scraptown | Scanned Subdweller tech in exchange for log data 6440 | -9/Scraptown | Learned Research machine intel 6514 | -9/Scraptown | Visited Spacefarers 6548 | -9/Scraptown | Visited Assassins FH 6564 | -9/Scraptown | Visited Junk Repository 6634 | -9/Scraptown | Learned location of Extension (-6) 6672 | -9/Scraptown | Delivered V3-11A's Pendant to T0-NE2 in exchange for information 6982 | -9/Scraptown | Visited IN-MT5's Study 7386 | -9/Scraptown | Visited Awakened 7432 | -9/Scraptown | Visited Shadow of the Wyrm 7446 | -9/Scraptown | Visited Cave Peace 7564 | -9/Scraptown | Visited UFD Registry 7564 | -9/Scraptown | Registered with UFD as "Pulsebay" 7701 | -9/Scraptown | Discovered new exit (range 13) 7754 | -9/Scraptown | Guru changed UFD alias to "Macenuts" 7998 | -9/Scraptown | Visited Scrapoid Pod Storage 8034 | -9/Scraptown | Visited Curators Association 8118 | -9/Scraptown | Visited LU-1G1's Boring Crew 8147 | -9/Scraptown | Visited Analyses Database 8205 | -9/Scraptown | Visited Supply Room 8258 | -9/Scraptown | Visited Scrapoid Research Area 8291 | -9/Scraptown | Visited Derelict Rescue Squad 8306 | -9/Scraptown | Found DRS Beacon 8355 | -9/Scraptown | Visited Chapter 10 8403 | -9/Scraptown | Visited Cartography Club 8875 | -9/Scraptown | Delivered Scrap Shield to a Scientist 9564 | -9/Scraptown | Learned location of Recycling (-9) 9564 | -9/Scraptown | Learned location of Upper Caves (-4) 9564 | -9/Scraptown | Learned location of Proximity Caves (-4) 9564 | -9/Scraptown | Learned location of Warlord (-4) 9564 | -9/Scraptown | Learned location of Cetus (-6) 9564 | -9/Scraptown | Learned 12 Materials zone layouts 9564 | -9/Scraptown | Learned 16 Factory zone layouts 9564 | -9/Scraptown | Learned 24 Factory zone layouts 9564 | -9/Scraptown | Learned 8 Research zone layouts 9564 | -9/Scraptown | Learned 12 Research zone layouts 9564 | -9/Scraptown | Learned 4 Mines zone layouts 9564 | -9/Scraptown | Learned 16 Upper Caves zone layouts 9564 | -9/Scraptown | Learned 12 Upper Caves zone layouts 9564 | -9/Scraptown | Learned 4 Armory zone layouts 9564 | -9/Scraptown | Learned Factory emergency access door positions 9564 | -9/Scraptown | Learned location of 2 exits from Factory 9564 | -9/Scraptown | Learned location of 2 exits from Proximity Caves 9564 | -9/Scraptown | Identified exit to Factory 9971 | -9/Scraptown | Met Optimus 9971 | -9/Scraptown | Accepted into 0bPrime 10371 | -9/Scraptown | Civil war broke out across Scraptown 10380 | -9/Scraptown | Found Prototype Special Weapon 10381 | -9/Scraptown | Identified LU-1G1's Laser Shovel 10408 | -9/Scraptown | Found DM-GVY's Chainsaw 10422 | -9/Scraptown | Found Deploy-a-Sentry 10460 | -9/Scraptown | Lost 8 allies 10600 | -9/Scraptown | Lost 7 allies 10652 | -9/Scraptown | Entered Factory 10652 | -6/Factory | Accompanied by 3 allies 10652 | -6/Factory | Evolved 8 slots: Propulsion x2, Utility x6 10653 | -6/Factory | Identified exit to Lower Caves 10653 | -6/Factory | Identified exit to Extension 10654 | -6/Factory | Identified exit to Factory 10656 | -6/Factory | Lost 3 allies 10657 | -6/Factory | Loaded intel: 6 fabricator locations 10763 | -6/Factory | Lost 3 allies 11063 | -6/Factory | Build established: Hacker-Mutant 11198 | -6/Factory | Repaired Lyr. Medium Armor Plating 11234 | -6/Factory | Loaded intel: 8 recycling unit locations 11387 | -6/Factory | Learned location of Protoforge (-2) 11846 | -6/Factory | Entered Lower Caves 11848 | -6/Lower Caves | UFD Scientist delivered a prototype 11850 | -6/Lower Caves | Found Prototype Protection 11850 | -6/Lower Caves | Identified Enh. Scrap Shield 11879 | -6/Lower Caves | Entered an active Warlord outpost 11889 | -6/Lower Caves | Learned 8 Factory zone layouts 11889 | -6/Lower Caves | Learned Armory stockpile data 12133 | -6/Lower Caves | Build established: Mutant 12475 | -6/Lower Caves | Released all parts (12) 12477 | -6/Lower Caves | Discovered new exit (range 7) 12482 | -6/Lower Caves | Core integrity fell below 50% 12495 | -6/Lower Caves | Core integrity fell below 20% 12507 | -6/Lower Caves | Destroyed by H-66 Slayer with Gauss Rifle Last Messages --------------- 12475_ Released Mak. Hacking Suite. 12475_ Released Armor Integrity Analyzer. 12475_ Released VSS Leg. 12475_ Released Titanium Leg. 12475_ Released Adv. Melee Analysis Suite. 12475_ Released Imp. Deuterium Engine. 12475_ Released Missile Launcher. 12477_ EXIT=FOUND 12478_ Penetrated by Slug. 12478_ Slug penetrates Wall. 12478_ Penetrated by Slug. 12485_ Slug penetrates Wall. 12488_ Penetrated by Slug. 12488_ H-66 Slayer destroyed. 12491_ Penetrated by Slug. 12493_ Phase Shifter fries itself beyond repair. 12494_ Penetrated by Slug. 12499_ Lgt. Fission Core fries itself beyond repair. 12504_ Flexi-carbon Leg fries itself beyond repair. 12504_ Penetrated by Slug. Map ----- +----------------------------------------------------+ | | | | | | | | | ????????????????????????????????????????????? | | ??????????????????????????????????????#?????? | | ????????????????????????????????????????????? | | ??????????????????????????????????#?????#??#? | | ??????????????????????????????????#?#?##??#?? | | ??????????????????????????????????????#?#???? | | ??????????????????????????????#??#?????##???# | | ???????????????????????????????????????##?### | | ???????????????????????????????????#?####?### | | ??????????????????????????###?????########### | | ???????????????????????????????####???#?#?### | | ?????????????????????????????#?????##?##?#### | | ????????????????????????#????#?#??#######?### | | ??????????????????????????#??##?#?##?#?###?## | | ?????????????????#####??##???#########?###### | | ????????????????## %##??#?#?#?###??##### # # | | ????????????????# #??###?#?######### # | | ????????????????# #?# #?##?#???#### | | ????????????????# ## #?########### ### | | ???????????????## #?#?####?##### ##? | | ??????????????## ###?###?##?#?# # #?# | | ??????????????# @ ##??#??#?##### ##? | | ??????????????# h ##?? #####?# ### | | ??????????????## ## #?##### #### | | ??????????????## ####### ## | | ??????????????# ###### # # | | ??????????????# # ##?## | | ??????????????##]=&=# < #### # # | | ??????????????# =!&/# ## ###?# # | | ??????????????##/=!!# ### ####### ## | | ???????????????#==!=# #### ##?###?# ### | | ???????????????# !!### ##?## ######## ### | | ???????????????## *#??######## # # ### | | ????????????????# ####?###?## # #? | | ????????????????# ####?#?# # # | | ????????????????# #?#?#### # ## ##### | | ????????????????#### #??#?## # ########?# | | ???????????????????# ##?### ##?####### | | ???????????????????# #??# # # ######## | | ?????????????????### #??## ## | | ???????????????### #???### | | ??????????????## ##???# # #### | | ??????????????# ##??#?# ###?# | | ??????????????# ##????# ## ###??### | | ??????????????# ###### ## #?????## | | ??????????????## ## ##?#? | +----------------------------------------------------+ Best States ------------- Heat Dissipation 37 Energy Generation 18 Energy Capacity 290 Matter Stores 300 Matter Capacity 300 Sight Range 16 Terrain Scan Density 10 Armor Coverage 800 Melee Speed Boost 20 Evasion (%) 55 Melee Accuracy 10 Armor Integrity Analysis 30 Recoil Reduction 2 Offensive Hacking 22 Item Schematics ----------------- Huge Storage Unit | -9/Recycling | Hacked Imp. System Shield | -6/Factory | Hacked Robot Schematics ------------------ None Fabricated ------------ Nothing Repaired ---------- Lyr. Medium Armor Plating | 15% | -6/Factory Studied --------- None Alien Tech Used ----------------- None Achievements -------------- None Challenges ------------ None Game ------ Seed SpectralPoweredMesh Manual? 0 Play Time 00:48:22 Cumulative 971.8 hours Start 2026.07.06 @ 16:39:56 End 2026.07.06 @ 17:30:28 Sessions 1 Manual Loads 0 Difficulty Rogue Special Mode None Game No. 1657 Rogue 1657 Adventurer 0 Explorer 0 Win Type - Total 95 Types 56/1/16/16/4/0/0/1/0/1 Lore% 93 Gallery% 80 Achievement% 68 Wizard Run 0 Options --------- Layout 0 ASCII 1 Keyboard 0 Movement Numpad Keybinds 1 Fullscreen 2 Font 18/SmallcapsGlow Map View 76x50 Zoom Use 0% Tactical HUD 1 Map Filters NONE Filters NONE Steam 1 RUN: 0906148b-6e50-450c-bc50-75a0c6449d8e